Cogmind - Beta 16 @@@ ROGUE MODE // 2026.01.03 @ 15:28:39 Player: ILikeVoltron Result: Self-destructed Performance ------------- Evolutions (5) 2500 Regions Visited (9) 1800 Robots Destroyed (76) 380 Value Destroyed (2002) 2002 Prototype IDs (4) 80 Alien Tech Used (0) 0 Bonus (452) 452 TOTAL SCORE: 7214 Bonus ------- Entered DSFs 500 Friendly Fire -48 Cogmind --------- Core Integrity 866/1000 Matter 287/300 Energy 100/100 System Corruption 8% Temperature Cool (0) Movement Walking (630) Ox6 Location -5/Waste Parts ------- > --- POWER (2) -------- (None) > --- PROPULSION (7) --- VSS Leg > --- UTILITY (5) ------ Huge Storage Unit Enhanced Optical Array Hacking Suite > --- WEAPON (3) ------- Gauss Rifle > --- INVENTORY (25) --- Light Nuclear Core Cooled Airjet Improved Heat Sink Advanced Heat Sink High-capacity Storage Unit High-capacity Matter Pod (200) Matter Compressor (250) Signal Interpreter Improved Terrain Scanner Terrain Scan Processor Improved Actuator Array Improved Actuator Array Hardened Light Armor Plating Hardened Light Armor Plating Hardened Light Armor Plating Improved Light Armor Plating Improved Shield Generator Heavy Ion Cannon Advanced Plasma Cannon Heavy Flak Cannon Grenade Launcher Mini Grenade Launcher Heavy Hammer Heavy Mace Peak State ------------ > --- POWER ------------ Light Deuterium Engine Light Angular Momentum Engine > --- PROPULSION ------- Carbon-fiber Leg Titanium Leg Titanium Leg Improved Titanium Leg Improved Titanium Leg Improved Titanium Leg Flexi-carbon Leg > --- UTILITY ---------- Huge Storage Unit Enhanced Optical Array Improved Terrain Scanner Improved Force Field Hacking Suite > --- WEAPON ----------- Advanced Plasma Cannon Gauss Rifle Coil Gun > --- INVENTORY -------- VSS Leg Cooled Airjet Improved Heat Sink Advanced Heat Sink High-capacity Storage Unit High-capacity Matter Pod Matter Compressor Signal Interpreter Terrain Scan Processor Improved Actuator Array Improved Actuator Array Hardened Light Armor Plating Hardened Light Armor Plating Hardened Light Armor Plating Hardened Light Armor Plating Improved Light Armor Plating Improved Shield Generator Heavy Laser Heavy Ion Cannon Heavy Flak Cannon Grenade Launcher Mini Grenade Launcher Heavy Hammer Heavy Mace [Rating: 75] Favorites ----------- Power Deuterium Engine Engine Deuterium Engine Power Core Micro Nuclear Core Propulsion Improved Aluminum Leg Treads Light Treads Leg Improved Aluminum Leg Utility Hacking Suite Device Improved Force Field Storage Huge Storage Unit Processor Transport Network Coupler Hackware Hacking Suite Protection Hardened Light Armor Plating Weapon Gauss Rifle Energy Gun EM Pulse Gun Energy Cannon Advanced Beam Cannon Ballistic Gun Gauss Rifle Ballistic Cannon Advanced Assault Cannon Launcher Grenade Launcher Impact Weapon Heavy Mace Build | -11 -10 -9 -9 -8 -7 -7 -6 -5 -5 ------- Run | Yrd Mat Mat Sto Mat Fac DSF Fac Fac Was Slots Evolved 10 | . . 2 . 2 2 . 2 2 . Power 1 | . . . . . . . . 1 . Propulsion 5 | . . 2 . 1 1 . 1 . . Utility 3 | . . . . . 1 . 1 1 . Weapon 1 | . . . . 1 . . . . . Parts Attached 77 | 2 6 8 6 7 2 12 28 6 . Power 9 | . . 2 . . . 2 3 2 . Engine 7 | . . 2 . . . 2 2 1 . Core 2 | . . . . . . . 1 1 . Reactor . | . . . . . . . . . . Propulsion 32 | . 3 5 1 4 1 6 12 . . Treads 3 | . 3 . . . . . . . . Leg 29 | . . 5 1 4 1 6 12 . . Wheel . | . . . . . . . . . . Hover . | . . . . . . . . . . Flight . | . . . . . . . . . . Utility 16 | 2 2 . 2 . 1 . 7 2 . Device 7 | 2 1 . . . . . 3 1 . Storage 2 | . 1 . 1 . . . . . . Processor 2 | . . . . . . . 2 . . Hackware 1 | . . . 1 . . . . . . Protection 4 | . . . . . 1 . 2 1 . Artifact . | . . . . . . . . . . Weapon 20 | . 1 1 3 3 . 4 6 2 . Energy Gun 2 | . . . . . . 1 . 1 . Energy Cannon 4 | . 1 . 1 . . 1 . 1 . Ballistic Gun 10 | . . . 1 3 . 1 5 . . Ballistic Cannon 1 | . . . . . . 1 . . . Launcher 1 | . . 1 . . . . . . . Special Weapon . | . . . . . . . . . . Impact Weapon 2 | . . . 1 . . . 1 . . Slashing Weapon . | . . . . . . . . . . Piercing Weapon . | . . . . . . . . . . Special Melee Weapon . | . . . . . . . . . . Unidentified Prototypes 2 | . . . 1 . 1 . . . . Parts Lost 44 | . 1 . . 3 . 14 16 7 3 Power 6 | . . . . . . 2 2 1 1 Propulsion 20 | . 1 . . 2 . 6 7 2 2 Utility 5 | . . . . . . 1 3 1 . Weapon 13 | . . . . 1 . 5 4 3 . Highest Loss Streak 12 | . 1 . . 1 . 12 7 6 3 To Critical Strikes 2 | . . . . 1 . 1 . . . Average Backups 20 | 7 12 14 15 24 24 21 24 24 25 Power . | 1 1 . 1 1 1 . . . 1 Propulsion 3 | 3 2 1 5 5 4 3 4 2 2 Utility 10 | 1 5 9 5 11 11 11 13 14 15 Weapon 5 | 1 3 3 3 6 7 6 5 7 7 Tool/Special . | . . . . . . . . . . Unused Backups 38 | 7 1 4 5 1 . 1 1 . 18 Power 2 | 1 . . . . . . . . 1 Propulsion 6 | 3 1 . . . . 1 . . 1 Utility 20 | 1 . 2 3 . . . 1 . 13 Weapon 10 | 2 . 2 2 1 . . . . 3 Tool/Special . | . . . . . . . . . . Average Slot Usage (%) 98 | . 100 95 99 99 98 96 98 99 64 Engine 8 | . 14 10 11 9 7 5 4 8 . Treads 3 | . 18 10 . . . . . . . Leg 38 | . 9 30 44 45 46 44 45 40 29 Device 4 | . 14 11 . . . . 2 9 5 Storage 8 | . 14 11 11 9 7 7 6 5 5 Processor 2 | . . . . . . . 5 5 5 Hackware 5 | . . . 10 9 7 7 6 5 5 Protection 1 | . . . . . 5 7 3 . . Energy Cannon 4 | . 7 7 9 7 . 2 1 2 . Ballistic Gun 13 | . 14 11 10 18 23 11 12 14 5 Impact Weapon 1 | . . . . . . . 2 . . Peak Build Rating 75 | 8 8 17 24 31 37 46 67 75 52 Average Rating 38 | 7 7 12 22 28 35 39 57 72 48 On Entrance 28 | 6 8 8 17 24 29 37 38 67 49 Avg Prop Armor Cover (%) 7 | . . 13 . . . . 6 5 5 Naked Turns . | . . . . . . . . . . Heaviest Build 129 | 12 28 34 96 99 100 107 114 129 101 Greatest Support 129 | 20 40 52 52 71 84 84 129 129 89 Greatest Overweight (x) 2 | . 1 2 1 1 1 1 1 1 1 Average Overweight (x) . | . . . . 1 1 1 . . 1 Largest Inventory Capacity 25 | 8 15 15 25 25 25 25 25 25 25 Average Capacity 21 | 8 13 15 15 25 25 25 25 25 25 Most Carried 25 | 8 15 15 22 25 25 25 25 25 25 Average Carried 20 | 7 12 14 15 24 23 21 24 24 24 Final Capacity 25 | 8 15 15 25 25 25 25 25 25 25 Final Carried 25 | 8 15 15 22 25 25 25 24 25 24 Class Distribution -------------------- 53% | Mutant 23% | Gunner 12% | Scavenger-Skirmisher 8% | Scavenger-Tank Dominant Class ---------------- Mutant | -10/Materials Mutant | -9/Materials Mutant | -9/Storage Gunner | -8/Materials Gunner | -7/Factory Gunner | -7/DSF Mutant | -6/Factory Scavenger-Skirmisher | -5/Factory Mutant | -5/Waste Resources | -11 -10 -9 -9 -8 -7 -7 -6 -5 -5 ----------- Run | Yrd Mat Mat Sto Mat Fac DSF Fac Fac Was Matter Collected 2549 | 225 231 174 244 285 . 243 959 188 . Remotely 312 | 25 204 83 . . . . . . . Salvage Created 2910 | 163 303 175 194 435 . 271 1293 76 . Parts 168 | 12 24 10 17 40 . 10 50 5 . Haulers Intercepted 7 | . 2 1 1 2 . . 1 . . Recyclers Shooed 4 | 1 . . 1 . . . 2 . . Parts Field Recycled . | . . . . . . . . . . Retrieved Matter . | . . . . . . . . . . Parts Self-Destructed . | . . . . . . . . . . Prevented . | . . . . . . . . . . Parts Restored . | . . . . . . . . . . Kills | -11 -10 -9 -9 -8 -7 -7 -6 -5 -5 ------- Run | Yrd Mat Mat Sto Mat Fac DSF Fac Fac Was Combat Hostiles Destroyed 50 | . 8 4 5 12 . 4 14 3 . Melee 2 | . . . . . . . 2 . . Guns 26 | . 3 . 1 8 . 3 8 3 . Cannons 19 | . 5 2 4 4 . 1 3 . . AOE 2 | . . 2 . . . . . . . Classes Destroyed 13 | 2 3 2 1 1 . 1 3 . . Worker 3 | . . . . . . . 3 . . Builder 3 | . . . . . . . 3 . . Tunneler 6 | 4 . . . 1 . . 1 . . Hauler 7 | . 2 1 1 2 . . 1 . . Recycler 4 | 1 . . . . . . 3 . . Mechanic 1 | . . 1 . . . . . . . Operator 2 | . . 2 . . . . . . . Swarmer 21 | . 6 . 3 8 . . 1 3 . Grunt 8 | . 2 4 . . . . 2 . . Sentry 9 | . . . 2 2 . . 5 . . Specialist 3 | . . . . . . 3 . . . Hunter 6 | . . . . 2 . 1 3 . . Programmer 3 | . . . . . . . 3 . . Best Kill Streak 10 | 3 3 4 2 10 . 1 6 2 . Combat Bots Only 10 | . 3 2 2 10 . 1 3 2 . Max Kills in Single Turn 3 | 3 1 3 2 2 . 1 1 1 . Gunslinging . | . . . . . . . . . . Exploded 2 | . . 2 . . . . . . . Melee 1 | . . . . . . . 1 . . Uniques/NPCs Destroyed . | . . . . . . . . . . Combat | -11 -10 -9 -9 -8 -7 -7 -6 -5 -5 -------- Run | Yrd Mat Mat Sto Mat Fac DSF Fac Fac Was Hostile Shots Fired 845 | . 56 26 31 96 . 163 403 68 2 Missed 248 | . 10 9 7 30 . 52 114 26 . Hits 597 | . 46 17 24 66 . 111 289 42 2 Melee 2 | . . . . . . . . . 2 Projectile 595 | . 46 17 24 66 . 111 289 42 . Critical Strikes 15 | . 2 . 2 1 . 3 3 3 1 Part Disruptions 3 | . . . 1 . . . . 2 . Damage Taken 7816 | 29 419 194 337 615 . 1968 3419 743 92 Core 1086 | . 120 24 37 125 . 201 445 78 56 Absorbed by Shields 174 | . . . . . . . 39 135 . Regen/Repaired (Parts) 40 | . . 11 . . . 29 . . . Core Remaining (%) 71 | 100 52 . 84 77 . 71 47 . . Volleys Fired 210 | 5 43 28 16 28 . 22 58 10 . Largest 3 | 2 2 2 2 3 . 3 3 3 . Hottest 156 | 60 80 80 91 114 . 120 128 156 . Shots Fired 488 | 10 78 49 32 85 . 66 141 27 . Gun 349 | 10 54 21 16 61 . 53 114 20 . Cannon 132 | . 24 21 16 24 . 13 27 7 . Launcher 7 | . . 7 . . . . . . . Special . | . . . . . . . . . . Kinetic 341 | 5 43 21 16 61 . 55 122 18 . Thermal 114 | . 24 21 16 24 . 1 19 9 . Explosive 7 | . . 7 . . . . . . . Electromagnetic 26 | 5 11 . . . . 10 . . . Robot Hit Streak 18 | 6 8 7 6 6 . 8 18 5 . Robot Miss Streak 7 | 1 4 7 3 5 . 4 2 2 . Penetration Max 1 | . . . . . . . 1 . . Secondary Targets 1 | . . . . . . 1 . . . Max Gunslinging Chain 1 | . . . . . . 1 . . . Shots Hit Robots 294 | 7 40 27 16 39 . 40 108 17 . Core Hits 126 | 7 17 19 8 20 . 13 36 6 . Critical Kills 2 | . . . . . . . 2 . . Critical Parts Destroyed 7 | . . . . . . . 6 1 . Critical Strikes 10 | . . . . . . . 9 1 . Destroy 5 | . . . . . . . 4 1 . Blast 1 | . . . . . . . 1 . . Smash 4 | . . . . . . . 4 . . Melee Attacks 27 | . . . 1 . . . 26 . . Impact 27 | . . . 1 . . . 26 . . Slashing . | . . . . . . . . . . Piercing . | . . . . . . . . . . Sneak Attacks 5 | . . . . . . . 5 . . Combat Hostiles . | . . . . . . . . . . Follow-up Attacks . | . . . . . . . . . . Damage Inflicted 6034 | 180 483 559 322 691 . 584 2796 419 . Guns 3241 | 68 272 108 138 383 . 429 1558 285 . Cannons 1680 | . 211 209 184 308 . 154 480 134 . Explosions 354 | 112 . 242 . . . . . . . Melee 758 | . . . . . . . 758 . . Ramming 1 | . . . . . . 1 . . . Kinetic 3368 | 28 208 108 138 383 . 527 1730 246 . Thermal 1505 | 112 211 209 184 308 . . 308 173 . Explosive 242 | . . 242 . . . . . . . Electromagnetic 160 | 40 64 . . . . 56 . . . Impact 758 | . . . . . . . 758 . . Slashing . | . . . . . . . . . . Piercing . | . . . . . . . . . . Highest Corruption 8 | . . . . 4 . . 4 1 8 Average Corruption 2 | . . . . 2 . . 3 1 6 Corruption Purged . | . . . . . . . . . . Corruption Blocked . | . . . . . . . . . . Effects 26 | . . . . 7 . . 16 1 2 Message Errors 4 | . . . . . . . 2 1 1 Matter Fused 8 | . . . . 3 . . 5 . . Heat Flow Errors 3 | . . . . . . . 2 . 1 Energy Discharges 4 | . . . . 1 . . 3 . . Parts Rejected 2 | . . . . 1 . . 1 . . Data Loss (minor) 2 | . . . . 1 . . 1 . . Misfires 2 | . . . . 1 . . 1 . . Weapon Failures 1 | . . . . . . . 1 . . Overload Shots . | . . . . . . . . . . Overflow Damage 291 | . . 9 . 1 . . 281 . . Projectiles 13 | . . . . 1 . . 12 . . Explosions 9 | . . 9 . . . . . . . Melee 269 | . . . . . . . 269 . . Knockbacks 6 | . . . . . . 1 5 . . Impact 3 | . . . . . . . 3 . . Kinetic 2 | . . . . . . 1 1 . . Secondary 1 | . . . . . . . 1 . . Self-Inflicted Damage 29 | 29 . . . . . . . . . Shots 2 | 2 . . . . . . . . . Rammed . | . . . . . . . . . . Targets Rammed 2 | . . . . . . 2 . . . Kicked 2 | . . . . . . 2 . . . Crushed . | . . . . . . . . . . Highest Temperature 298 | 32 240 40 75 276 . . 298 281 224 Average Temperature 81 | 17 66 13 29 119 . . 90 128 117 Received Heat Transfer 1094 | . 96 87 123 9 . 18 691 70 . Effects 4 | . 3 . . . . . . 1 . Interference 4 | . 3 . . . . . . 1 . Siege Activations . | . . . . . . . . . . Martial Activations . | . . . . . . . . . . Shielding Activations . | . . . . . . . . . . Robots Disrupted . | . . . . . . . . . . Combat Hostiles . | . . . . . . . . . . Robots Corrupted 6 | . . . . . . . 6 . . Combat Hostiles 1 | . . . . . . . 1 . . Parts Fried 12 | . . . . . . 1 11 . . Impact Corruptions 14 | . . . . . . . 14 . . Robots Melted . | . . . . . . . . . . Combat Hostiles . | . . . . . . . . . . Parts Melted 1 | . . 1 . . . . . . . Heat Transferred 2631 | 100 444 444 333 555 . . 481 274 . Parts Sabotaged . | . . . . . . . . . . Parts Stolen . | . . . . . . . . . . Parts Stripped . | . . . . . . . . . . Power Chain Reactions 2 | 2 . . . . . . . . . Alert | -11 -10 -9 -9 -8 -7 -7 -6 -5 -5 ------- Run | Yrd Mat Mat Sto Mat Fac DSF Fac Fac Was Maximum Alert Level 1 | . . . . 1 . . . . . Low Security (%) 95 | 100 100 100 100 73 100 100 100 100 100 Level 1 4 | . . . . 26 . . . . . Level 2 . | . . . . . . . . . . Level 3 . | . . . . . . . . . . Level 4 . | . . . . . . . . . . Level 5 . | . . . . . . . . . . High Security . | . . . . . . . . . . Max Security . | . . . . . . . . . . Peak Influence 271 | 15 97 72 50 271 39 40 158 116 . Initial 39 | . 9 30 12 . 39 13 10 28 . Average 55 | 3 28 20 11 151 29 20 62 34 . Influence Increases 1886 | 25 209 165 184 436 . 130 579 158 . Destroy 0b10 Robot/C 1000 | . 160 80 100 240 . 80 280 60 . Destroy 0b10 Robot/NC 130 | 25 10 20 5 15 . . 55 . . Destroy Leader 304 | . 34 32 22 64 . 20 122 10 . Successful Hack 112 | . 5 11 27 26 . . 19 24 . Disable Machine 75 | . . . 15 15 . 15 15 15 . Destroy Structure 70 | . . 22 . 1 . . 43 4 . Partial Spotted 15 | . . . . 15 . . . . . Lose Combat Pursuer 180 | . . . 15 60 . 15 45 45 . Influence Decreases 1886 | 10 151 208 214 348 69 129 541 216 . Entered New Map 162 | . 6 43 18 . 49 6 10 30 . Time Decay 1371 | 10 135 165 196 318 20 . 401 126 . Lost Part 313 | . 10 . . 30 . 123 130 20 . Lost Ally 40 | . . . . . . . . 40 . Squads Dispatched 20 | . 1 3 2 1 . 2 6 5 . Investigation 2 | . . . . 1 . . . 1 . Extermination 3 | . . . . . . . 2 1 . Reinforcement 13 | . 1 3 1 . . 2 3 3 . Assault . | . . . . . . . . . . Garrison 2 | . . . 1 . . . 1 . . Intercept . | . . . . . . . . . . Searches Triggered . | . . . . . . . . . . Construction Impeded . | . . . . . . . . . . Haulers Reinforced 1 | . . . . . . . 1 . . Active Scanning Responses . | . . . . . . . . . . Cargo Convoy Interrupts . | . . . . . . . . . . Stealth | -11 -10 -9 -9 -8 -7 -7 -6 -5 -5 --------- Run | Yrd Mat Mat Sto Mat Fac DSF Fac Fac Was Distress Signals 4 | . . . . 3 . . 1 . . Communications Jammed . | . . . . . . . . . . Distress Signals . | . . . . . . . . . . Times Spotted 121 | . 11 16 19 19 . 13 21 17 5 Peak Tracking Total 11 | . 4 7 5 11 . 7 4 9 5 Tactical Retreats 6 | . . . 1 1 . 1 1 2 . Traps | -11 -10 -9 -9 -8 -7 -7 -6 -5 -5 ------- Run | Yrd Mat Mat Sto Mat Fac DSF Fac Fac Was Traps Triggered 6 | . . . . 4 . . . 2 . Indirectly . | . . . . . . . . . . Trap Hack Attempts . | . . . . . . . . . . Triggered . | . . . . . . . . . . Disarmed . | . . . . . . . . . . Reprogrammed . | . . . . . . . . . . Reused . | . . . . . . . . . . Traps Extracted . | . . . . . . . . . . Installed . | . . . . . . . . . . Triggered . | . . . . . . . . . . Machines | -11 -10 -9 -9 -8 -7 -7 -6 -5 -5 ---------- Run | Yrd Mat Mat Sto Mat Fac DSF Fac Fac Was Machines Disabled 5 | . . . 1 1 . 1 1 1 . Max in Single Turn 1 | . . . 1 1 . 1 1 1 . Machines Repaired . | . . . . . . . . . . Machines Dismantled . | . . . . . . . . . . Machines Sabotaged . | . . . . . . . . . . Overloaded Fab Kills . | . . . . . . . . . . Hacking | -11 -10 -9 -9 -8 -7 -7 -6 -5 -5 --------- Run | Yrd Mat Mat Sto Mat Fac DSF Fac Fac Was Machines Accessed 26 | . 2 4 10 2 1 . 5 2 . Terminals 20 | . 1 3 10 2 1 . 2 1 . Fabricators 2 | . . . . . . . 1 1 . Repair Stations 1 | . . 1 . . . . . . . Recycling Units 3 | . 1 . . . . . 2 . . Scanalyzers . | . . . . . . . . . . Garrison Access . | . . . . . . . . . . Total Hacks 62 | . 4 11 21 4 1 . 14 7 . Successful 34 | . 2 7 11 2 1 . 6 5 . Failed 28 | . 2 4 10 2 . . 8 2 . Catastrophic 2 | . . . . 1 . . 1 . . Database Lockouts . | . . . . . . . . . . Manual 1 | . . . . 1 . . . . . Terminals 49 | . 2 8 21 4 1 . 9 4 . Fabricators 4 | . . . . . . . 1 3 . Repair Stations 3 | . . 3 . . . . . . . Recycling Units 6 | . 2 . . . . . 4 . . Scanalyzers . | . . . . . . . . . . Garrison Access . | . . . . . . . . . . Terminal Hacks 26 | . 1 5 11 2 1 . 3 3 . Part Schematic 7 | . . . 4 . . . 2 1 . Robot Analysis 2 | . . . 2 . . . . . . Prototype ID Bank 1 | . 1 . . . . . . . . Open Door 3 | . . . 3 . . . . . . Open DSF 1 | . . . . . 1 . . . . Branch Access Points 2 | . . . 1 1 . . . . . Emergency Access Points 1 | . . 1 . . . . . . . Terminal Index 1 | . . 1 . . . . . . . Alert Level 3 | . . 1 . . . . 1 1 . Locate Traps 3 | . . 1 1 1 . . . . . Maintenance Status 1 | . . 1 . . . . . . . Hauler Manifests 1 | . . . . . . . . 1 . Fabricator Hacks 3 | . . . . . . . 1 2 . Load Schematic 1 | . . . . . . . . 1 . Build 2 | . . . . . . . 1 1 . Repair Station Hacks 2 | . . 2 . . . . . . . Scan Component 1 | . . 1 . . . . . . . Repair 1 | . . 1 . . . . . . . Recycling Unit Hacks 3 | . 1 . . . . . 2 . . Report Inventory 3 | . 1 . . . . . 2 . . Scanalyzer . | . . . . . . . . . . Garrison Access Hacks . | . . . . . . . . . . Unauthorized Hacks . | . . . . . . . . . . Terminals . | . . . . . . . . . . Fabricators . | . . . . . . . . . . Repair Stations . | . . . . . . . . . . Recycling Units . | . . . . . . . . . . Scanalyzers . | . . . . . . . . . . Garrison Access . | . . . . . . . . . . Data Cores Recovered . | . . . . . . . . . . Used . | . . . . . . . . . . Hacking Detections 21 | . 1 4 7 2 1 . 4 2 . Full Trace Events 2 | . . . 1 . . . . 1 . Feedback Events . | . . . . . . . . . . Feedback Blocked . | . . . . . . . . . . Robot Schematics Acquired . | . . . . . . . . . . Robots Built 2 | . . . . . . . . 2 . Authchips . | . . . . . . . . . . Time 84 | . . . . . . . . 84 . Total Robot Build Rating 12 | . . . . . . . . 12 . Part Schematics Acquired 7 | . . . 4 . . . 2 1 . Parts Built 2 | . . . . . . . 2 . . Authchips . | . . . . . . . . . . Time 58 | . . . . . . . 58 . . Total Part Build Rating 14 | . . . . . . . 14 . . Part Studies Acquired . | . . . . . . . . . . Parts Repaired 1 | . . 1 . . . . . . . Time 26 | . . 26 . . . . . . . Parts Recycled . | . . . . . . . . . . Recycled Matter . | . . . . . . . . . . Retrieved Matter . | . . . . . . . . . . Retrieved Components . | . . . . . . . . . . Parts Scanalyzed . | . . . . . . . . . . Part Schematics Acquired . | . . . . . . . . . . Parts Damaged . | . . . . . . . . . . Bothacking | -11 -10 -9 -9 -8 -7 -7 -6 -5 -5 ------------ Run | Yrd Mat Mat Sto Mat Fac DSF Fac Fac Was Used RIF Installer . | . . . . . . . . . . Robots Hacked . | . . . . . . . . . . Non-combat . | . . . . . . . . . . Combat . | . . . . . . . . . . Robot Hacks Applied . | . . . . . . . . . . Relay Couplers Released . | . . . . . . . . . . Fabnet Peak Effective % . | . . . . . . . . . . Robots Rewired . | . . . . . . . . . . Allies Hacked . | . . . . . . . . . . Hacks Repelled . | . . . . . . . . . . Allies | -11 -10 -9 -9 -8 -7 -7 -6 -5 -5 -------- Run | Yrd Mat Mat Sto Mat Fac DSF Fac Fac Was Total Allies 3 | . . . . . . . . 2 1 Largest Group 2 | . . . . . . . . 2 1 Highest-Rated Group 108 | . . . . . . . . 108 31 Highest-Rated Ally 54 | . . . . . . . . 54 31 Total Orders . | . . . . . . . . . . Ally Attacks 12 | . . . . . . . . 9 3 Total Damage 200 | . . . . . . . . 136 64 Kills . | . . . . . . . . . . Allies Corrupted . | . . . . . . . . . . Allies Melted . | . . . . . . . . . . Intel | -11 -10 -9 -9 -8 -7 -7 -6 -5 -5 ------- Run | Yrd Mat Mat Sto Mat Fac DSF Fac Fac Was Active Infowar (turns) 2140 | 14 . 91 24 . . . 1496 447 68 Optics 967 | . . . . . . . 452 447 68 Terrain 393 | . . . . . . . 26 367 . Seismic 129 | 14 . 91 24 . . . . . . T.N.C. 1041 | . . . . . . . 1041 . . Robot Analysis Total 2 | . . . 2 . . . . . . Derelict Logs Recovered . | . . . . . . . . . . Drone Launches . | . . . . . . . . . . Drone Recoveries . | . . . . . . . . . . Exploration | -11 -10 -9 -9 -8 -7 -7 -6 -5 -5 ------------- Run | Yrd Mat Mat Sto Mat Fac DSF Fac Fac Was Turns Passed 4826 | 56 565 481 605 755 56 207 1586 447 68 Spaces Moved 2266 | 11 261 242 419 332 28 54 660 225 34 Core . | . . . . . . . . . . Treads 236 | . 171 65 . . . . . . . Legs 2030 | 11 90 177 419 332 28 54 660 225 34 Wheels . | . . . . . . . . . . Hover . | . . . . . . . . . . Flight . | . . . . . . . . . . Fastest Speed 107 | 120 120 120 120 190 191 185 107 127 189 Average Speed 158 | 120 156 142 122 191 191 187 174 132 196 Slowest Speed 260 | 120 190 260 190 192 191 192 200 198 197 Overloaded Moves . | . . . . . . . . . . Propulsion Burnouts . | . . . . . . . . . . Robots Hopped . | . . . . . . . . . . Potential Cave-ins . | . . . . . . . . . . Cave-ins Triggered . | . . . . . . . . . . Exploration Rate (%) 30 | 3 38 32 78 34 1 47 23 7 44 Regions Visited 9 Branch Regions 1 Pre-discovered Areas . | . . . . . . . . . . Known Exits Taken 1 | . . . . . 1 . . . . Unknown Exits Taken 6 | 1 1 1 1 1 . . 1 . . Scrap Searched . | . . . . . . . . . . Spaces Dug 15 | . . 9 . . . . 6 . . Terrain Destroyed 100 | 2 . 47 . . . . 49 2 . Melee 6 | . . . . . . . 6 . . Projectile 6 | . . . . . . . 4 2 . AOE 87 | 2 . 47 . . . . 38 . . Terrain Rammed . | . . . . . . . . . . Walls Destroyed . | . . . . . . . . . . Machines Disabled . | . . . . . . . . . . Actions | -11 -10 -9 -9 -8 -7 -7 -6 -5 -5 --------- Run | Yrd Mat Mat Sto Mat Fac DSF Fac Fac Was Total 3062 | 44 347 335 480 391 31 116 930 353 35 Wait 335 | 23 19 35 18 5 . 10 124 101 . Move 2259 | 10 260 241 418 331 27 54 659 225 34 Hop . | . . . . . . . . . . Pick Up 82 | 3 11 8 12 13 2 11 18 4 . Fast Attach 16 | 1 . 6 2 . . 3 4 . . Attach 40 | . 1 . . 6 2 9 18 3 1 Detach 1 | . . . . . . . 1 . . Swap 40 | 1 9 5 5 3 . 2 11 4 . Drop 43 | 1 4 12 8 5 . 4 8 1 . Fire 210 | 5 43 28 16 28 . 22 58 10 . Melee 27 | . . . 1 . . . 26 . . Ram . | . . . . . . . . . . Kick 1 | . . . . . . 1 . . . Crush . | . . . . . . . . . . Escape Stasis 5 | . . . . . . . . 5 . Rewire 3 | . . . . . . . 3 . . Trap . | . . . . . . . . . . Miscellaneous . | . . . . . . . . . . Route ------- -11/Scrapyard -10/Materials -9/Materials (discovered 2 exits: *Mat / *Sto) -9/Storage (discovered 2 exits: *Mat / Rec) -8/Materials -7/Factory -7/DSF -6/Factory -5/Factory -5/Waste History --------- Turn | Location | Event 4 | -11/Scrapyard | Discovered new exit (range 1) 57 | -11/Scrapyard | Entered Materials 307 | -10/Materials | Build established: Mutant 542 | -10/Materials | Discovered new exit (range 16) 622 | -10/Materials | Entered another Materials area 622 | -9/Materials | Evolved 2 slots: Propulsion x2 954 | -9/Materials | Repaired Ion Engine 1056 | -9/Materials | Discovered new exit (range 4) 1096 | -9/Materials | Discovered new exit (range 6) 1103 | -9/Materials | Entered Storage 1150 | -9/Storage | Found Prototype Protection 1278 | -9/Storage | Met 01-MTF 1398 | -9/Storage | Garrison activated, responded to threat 1464 | -9/Storage | Identified exit to Recycling 1701 | -9/Storage | Discovered new exit (range 5) 1708 | -9/Storage | Entered Materials 1708 | -8/Materials | Accompanied by 1 ally (01-MTF) 1708 | -8/Materials | Evolved 2 slots: Propulsion x1, Weapon x1 1711 | -8/Materials | 01-MTF left 1841 | -8/Materials | Destroyed 10 combat bots 2057 | -8/Materials | Build established: Gunner 2438 | -8/Materials | Discovered new exit (range 14) 2463 | -8/Materials | Entered Factory 2463 | -7/Factory | Evolved 2 slots: Propulsion x1, Utility x1 2466 | -7/Factory | Identified Lgt. Regenerative Plating 2519 | -7/Factory | Identified exit to DSF 2519 | -7/Factory | Entered DSF 2557 | -7/DSF | Additional patrols routed to DSF 2604 | -7/DSF | Discovered new exit (range 16) 2689 | -7/DSF | Lost 12 parts (2p5n5w) 2726 | -7/DSF | Entered Factory 2726 | -6/Factory | Evolved 2 slots: Propulsion x1, Utility x1 3141 | -6/Factory | Garrison activated, responded to threat 3265 | -6/Factory | Lost 7 parts (1p4n2w) 3528 | -6/Factory | Build established: Mutant 4046 | -6/Factory | Fabricated Imp. Force Field (x2) 4159 | -6/Factory | Discovered new exit (range 17) 4173 | -6/Factory | Core integrity fell below 50% 4201 | -6/Factory | Lost 3 parts (2n1u) 4312 | -6/Factory | Entered another Factory area 4312 | -5/Factory | Evolved 2 slots: Power x1, Utility x1 4609 | -5/Factory | Build established: Scavenger-Skirmisher 4671 | -5/Factory | Fabricated P-70 Sage (x2) 4759 | -5/Factory | Sucked down chute 4759 | -5/Factory | Entered Waste 4760 | -5/Waste | Met a frightened Derelict 4774 | -5/Waste | EMP discharged 4785 | -5/Waste | Spotted C-40 Crusher 4787 | -5/Waste | Spotted C-40 Crusher 4787 | -5/Waste | Spotted C-40 Crusher 4787 | -5/Waste | Spotted C-40 Crusher 4789 | -5/Waste | Lost 6 parts (1p2n1u2w) 4822 | -5/Waste | Spotted C-40 Crusher 4823 | -5/Waste | Crushed by Compactor (1 part destroyed, 2 dropped) 4826 | -5/Waste | Crushed by Compactor (1 part destroyed, 2 dropped) 4827 | -5/Waste | Self-destructed Last Messages --------------- 04760_ 51-G0G(g): "Oh no, you too?! We need to get out of this place, preferably unseen. I've heard terrible stories about what compactors can do if you allow them to get too close... Maybe together we can make it." 04764_ ALERT: Foreign system detected. Charging EMP. 04774_ System corrupted (+7). 04775_ WJ:U87V>FVI2GB KX
8JCA:>PO8EE1Y=9D
04794_ Broken Dual-blade Saw crushed.
04795_ 51-G0G(g) Lgt. Angular Momentum Engine crushed.
04795_ 51-G0G(g) Carbon-fiber Leg crushed.